[Event "RUDAR XXII-IM 2024"]
[Site "Pozarevac"]
[Date "2024.02.12"]
[Round "3.4"]
[White "Ninov, Nikolai"]
[Black "Petrovic, Aleksa"]
[Result "0-1"]
[ECO "C01"]
[WhiteElo "2413"]
[BlackElo "2248"]
[Annotator "TA"]
[PlyCount "80"]
[EventDate "2024.02.12"]
[EventType "tourn"]
[EventCountry "SRB"]
[SourceTitle "playchess.com"]
[Source "ChessBase"]
[SourceQuality "1"]
[TimeControl "5400+30"]

{[%evp 9,80,0,0,0,0,0,4,3,33,31,40,38,58,35,43,29,41,39,49,30,34,27,54,47,54,41,39,42,34,35,36,36,45,39,72,51,65,63,75,59,83,77,80,88,89,82,81,75,113,99,213,226,375,370,495,495,465,465,514,514,543,524,519,473,477,465,426,409,377,187,174,-954,-943]} 1. e4 {[%emt 0:00:06]} e6 {[%emt 0:00:06]} 2. d4 {[%emt 0:00:24]} d5 {[%emt 0:00:05]} 3. exd5 {[%emt 0:01:16]} exd5 {[%emt 0:00:49]} 4. Bf4 {[%emt 0:00:17]} Bd6 {[%emt 0:01:16]} 5. Qd2 {[%emt 0:00:33]} Bxf4 {[%emt 0:04:11]} 6. Qxf4 {[%emt 0:00:21]} Qe7+ {[%emt 0:00:28]} 7. Ne2 {[%emt 0:01:07]} c6 {[%emt 0:04:26]} 8. Nbc3 {[%emt 0:07:51] The position is equal.} Qf6 {[%emt 0:04:59]} 9. h4 {[%emt 0:04:02]} Qxf4 {[%emt 0:04:13]} 10. Nxf4 {[%emt 0:00:10]} h5 {[%emt 0:04:15]} 11. O-O-O {[%emt 0:09:24][%cal Ba1d1,Bd1e1,Be1e5][%mdl 32]} Nd7 {[%emt 0:04:46]} 12. Re1+ {[%emt 0:10:45]} Kf8 {[%emt 0:01:12]} 13. Bd3 {[%emt 0:04:30]} Ndf6 {[%emt 0:02:02]} 14. f3 {[%emt 0:10:01]} Ne7 {[%emt 0:09:52]} 15. Re5 {[%emt 0:16:09]} Bd7 {[%emt 0:01:19]} 16. Rhe1 {[%emt 0:01:05]} Re8 {[%emt 0:01:09]} 17. Nce2 {[%emt 0:03:44]} g6 {[%emt 0:02:49]} 18. Ng3 {[%emt 0:00:37]} Rg8 {[%emt 0:06:43]} 19. b3 {[%emt 0:00:41]} Nc8 {[%emt 0:05:23]} 20. c4 {[%emt 0:00:26]} dxc4 {[%emt 0:00:37]} 21. bxc4 {[%emt 0:00:16]} Rd8 {[%emt 0:01:54]} 22. Kc2 {[%emt 0:02:09]} Nb6 {[%emt 0:03:41]} 23. Ra5 {[%emt 0:04:16]} (23. Kc3 {is interesting.} c5 24. d5 Nc8 25. R5e3) 23... Nc8 {[%emt 0:03:07]} 24. Kc3 $36 {[%emt 0:01:27][%mdl 2048] White has the initiative.} Kg7 {[%emt 0:01:17]} 25. Rg5 {[%emt 0:03:42]} Kh6 {[%emt 0:01:46]} 26. Re2 {[%emt 0:03:12]} Nh7 {[%emt 0:03:43]} 27. Rge5 {[%emt 0:00:49][%cal Rg3h5]} Nf6 {[%emt 0:01:32]} 28. a4 {[%emt 0:05:17][%cal Ba2a4,Ba4a5][%mdl 32]} Rgf8 {[%emt 0:04:14]} 29. a5 {[%emt 0:00:17]} Nd6 {[%emt 0:04:27]} (29... b5 $16 {keeps fighting.}) 30. c5 $18 {[%emt 0:00:42]} Nde8 {[%emt 0:05:53]} (30... Nb5+ $142 31. Bxb5 cxb5) 31. Rg5 {[%emt 0:00:59]} Nc7 {[%emt 0:08:04] [#]} 32. Nxg6 $1 {[%emt 0:05:39][%cal Bf4g6,Bg6e5,Be5f7][%mdl 544]} Rg8 {[%emt 0:02:09]} 33. Ne5 {[%emt 0:00:37][%cal Re5f7]} Rxg5 {[%emt 0:01:28]} 34. hxg5+ {[%emt 0:00:30]} Kxg5 {[%emt 0:00:02]} 35. Nxf7+ {[%emt 0:00:22]} Kh4 {[%emt 0:00:03]} 36. Ne4 {[%emt 0:01:52] Intending g3+ and mate.} Ncd5+ {[%emt 0:00:35]} 37. Kd2 {[%emt 0:00:31] Threatening mate with g3+.} Rg8 {[%emt 0:00:21]} 38. Nfd6 {[%emt 0:00:47]} Nxe4+ {[%emt 0:01:32]} 39. Rxe4+ {[%emt 0:00:42]} ({Less strong is} 39. fxe4 Nf4 $16) (39. Nxe4 $142 Bf5 40. Bc4 (40. g3+ Rxg3 41. Nxg3 Bxd3 $18)) 39... Kg3 {[%emt 0:00:19] [#]} 40. Re7 $4 {[%emt 0:00:10][%mdl 8192]} Nxe7 {[%emt 0:03:43] Never resign too early!   Weighted Error Value: White=0.27 (precise) /Black=0.25 (precise) .  Missed win:     	White=1     	---        Mistake:       	White=1     	Black=2      Inaccurate:     	---       	Black=5      OK:         	White=12    	Black=11     Best:        	White=3     	Black=5      Brilliant:      	White=1     	---} 0-1

[Event "RUDAR XXII-IM 2024"]
[Site "Pozarevac"]
[Date "2024.02.12"]
[Round "4.1"]
[White "Ilincic, Zlatko"]
[Black "Spasic, Petar"]
[Result "1/2-1/2"]
[ECO "D41"]
[WhiteElo "2291"]
[BlackElo "2343"]
[Annotator "TA"]
[PlyCount "32"]
[EventDate "2024.02.12"]
[EventType "tourn"]
[EventCountry "SRB"]
[SourceTitle "playchess.com"]
[Source "ChessBase"]
[SourceQuality "1"]
[TimeControl "5400+30"]

{[%evp 23,32,27,44,36,59,11,8,0,0,0,24]} 1. d4 {[%emt 0:00:04]} Nf6 {[%emt 0:11:23]} 2. c4 {[%emt 0:00:10]} c5 {[%emt 0:00:09]} 3. Nf3 {[%emt 0:00:13]} e6 {[%emt 0:00:06]} 4. Nc3 {[%emt 0:00:18]} d5 {[%emt 0:02:00]} 5. cxd5 {[%emt 0:00:35]} Nxd5 {[%emt 0:00:18]} 6. e4 {[%emt 0:00:34]} Nxc3 {[%emt 0:00:07]} 7. bxc3 {[%emt 0:00:04]} cxd4 {[%emt 0:00:08]} 8. cxd4 {[%emt 0:00:04]} Bb4+ {[%emt 0:00:08]} 9. Bd2 {[%emt 0:00:07]} Bxd2+ {[%emt 0:00:07]} 10. Qxd2 {[%emt 0:00:03]} O-O {[%emt 0:00:08]} 11. Bc4 {[%emt 0:00:36]} Nd7 {[%emt 0:00:46]} 12. O-O {[%emt 0:00:16]} Nf6 {[%emt 0:04:50]} 13. Rfe1 {[%emt 0:00:47]} b6 {[%emt 0:00:53]} 14. Rad1 {[%emt 0:00:47]} (14. e5 $14 {was preferrable.} Nd5 15. Ng5) 14... Bb7 $11 {[%emt 0:01:03] The position is equal.} 15. Qf4 {[%emt 0:00:42][%cal Od4d5]} Rc8 {[%emt 0:03:37]} 16. Bd3 {[%emt 0:02:08][%cal Od4d5]} h6 {[%emt 0:19:02] White got outplayed after the opening.   Weighted Error Value: White=0.15 (very precise) /Black=0.10 (very precise) .  Mistake:       	White=1     	---        OK:         	---       	Black=2} 1/2-1/2

[Event "RUDAR XXII-IM 2024"]
[Site "Pozarevac"]
[Date "2024.02.12"]
[Round "4.3"]
[White "Popchev, Milko"]
[Black "Ninov, Nikolai"]
[Result "1/2-1/2"]
[ECO "A36"]
[WhiteElo "2193"]
[BlackElo "2413"]
[Annotator "TA"]
[PlyCount "23"]
[EventDate "2024.02.12"]
[EventType "tourn"]
[EventCountry "SRB"]
[SourceTitle "playchess.com"]
[Source "ChessBase"]
[SourceQuality "1"]
[TimeControl "5400+30"]

{[%evp 18,23,0,0,2,0,-2,-56]} 1. c4 {[%emt 0:03:33]} c5 {[%emt 0:00:12]} 2. Nc3 {[%emt 0:00:10]} Nc6 {[%emt 0:00:09]} 3. g3 {[%emt 0:00:10]} g6 {[%emt 0:00:08]} 4. Bg2 {[%emt 0:00:08]} Bg7 {[%emt 0:00:09]} 5. d3 {[%emt 0:00:10]} Nf6 {[%emt 0:00:10]} 6. e4 {[%emt 0:00:12]} d6 {[%emt 0:00:21]} 7. Nge2 {[%emt 0:00:09]} O-O {[%emt 0:00:11]} 8. O-O {[%emt 0:07:05]} Bg4 {[%emt 0:02:29]} 9. h3 {[%emt 0:00:31]} Bxe2 {[%emt 0:00:19]} 10. Nxe2 {[%emt 0:00:08] The position is equal.} Nd7 {[%emt 0:00:35]} 11. g4 {[%emt 0:00:42]} e6 {[%emt 0:01:59]} 12. Ng3 {[%emt 0:00:20] A rather calm draw.   Mistake:       	White=1     	---} ({White should play} 12. Rb1 $11) 1/2-1/2

[Event "RUDAR XXII-IM 2024"]
[Site "Pozarevac"]
[Date "2024.02.12"]
[Round "4.4"]
[White "Karamsetty, Jeevan"]
[Black "Potluri Saye Srreezza"]
[Result "1-0"]
[ECO "C26"]
[WhiteElo "2211"]
[BlackElo "1983"]
[Annotator "RC"]
[PlyCount "57"]
[EventDate "2024.02.12"]
[EventType "tourn"]
[EventCountry "SRB"]
[SourceTitle "playchess.com"]
[Source "ChessBase"]
[SourceQuality "1"]
[TimeControl "5400+30"]

1. e4 {[%emt 0:02:07]} e5 {[%emt 0:02:00]} 2. Nc3 {[%emt 0:00:08]} Nf6 {[%emt 0:00:05]} 3. g3 {[%emt 0:00:14]} d5 {[%emt 0:03:17]} 4. exd5 {[%emt 0:00:07]} Nxd5 {[%emt 0:00:06]} 5. Bg2 {[%emt 0:00:04]} Nxc3 {[%emt 0:00:46]} 6. bxc3 {[%emt 0:00:08]} g6 {[%emt 0:00:59]} 7. Nf3 {[%emt 0:04:31]} Bd6 {[%emt 0:07:05]} 8. O-O {[%emt 0:05:59]} O-O {[%emt 0:00:33]} 9. Re1 {[%emt 0:09:29]} Re8 {[%emt 0:05:37]} 10. d4 {[%emt 0:15:26]} exd4 {[%emt 0:08:51]} 11. cxd4 {[%emt 0:11:55]} Be7 {[%emt 0:18:21]} 12. Qe2 {[%emt 0:06:19]} c6 {[%emt 0:02:30]} 13. Rb1 {[%emt 0:05:42]} Bd7 {[%emt 0:05:00]} 14. Ne5 {[%emt 0:02:19]} Qc8 {[%emt 0:00:56]} 15. Nxd7 {[%emt 0:07:33]} Nxd7 {[%emt 0:03:22]} 16. Bh3 {[%emt 0:01:06]} b6 {[%emt 0:03:51]} 17. Bh6 {[%emt 0:06:03]} Qd8 {[%emt 0:04:41]} 18. Qc4 {[%emt 0:02:57]} Rc8 {[%emt 0:03:25]} 19. Rb3 {[%emt 0:03:52]} Bf8 {[%emt 0:08:58]} 20. Rxe8 {[%emt 0:00:46]} Qxe8 {[%emt 0:00:09]} 21. Re3 {[%emt 0:00:33]} Qd8 {[%emt 0:00:13]} 22. Bxf8 {[%emt 0:00:25]} Kxf8 {[%emt 0:00:09]} 23. Qb4+ {[%emt 0:02:50]} c5 {[%emt 0:01:42]} 24. dxc5 {[%emt 0:00:27]} bxc5 {[%emt 0:00:21]} 25. Qd2 {[%emt 0:01:11]} Rc7 {[%emt 0:02:25]} 26. Qd6+ {[%emt 0:00:20]} Kg8 {[%emt 0:00:49]} 27. Re7 {[%emt 0:00:30]} f5 {[%emt 0:00:34]} 28. Qe6+ {[%emt 0:00:19]} Kh8 {[%emt 0:00:07]} 29. Re8+ {[%emt 0:00:08]} 1-0

[Event "RUDAR XXII-IM 2024"]
[Site "Pozarevac"]
[Date "2024.02.12"]
[Round "4.5"]
[White "Sri Sai Baswanth P"]
[Black "Mesic, Ismet"]
[Result "1/2-1/2"]
[ECO "A14"]
[WhiteElo "2096"]
[BlackElo "2232"]
[Annotator "TA"]
[PlyCount "63"]
[EventDate "2024.02.12"]
[EventType "tourn"]
[EventCountry "SRB"]
[SourceTitle "playchess.com"]
[Source "ChessBase"]
[SourceQuality "1"]
[TimeControl "5400+30"]

{[%evp 15,63,20,17,4,39,39,40,34,75,11,12,2,24,-40,-7,-62,-56,-90,-93,-165,-166,-145,-163,-178,-167,-165,-184,-175,-39,-32,-24,-23,-23,-23,-23,-23,-20,-20,-20,-20,0,0,0,0,0,0,0,0,0,0]} 1. c4 {[%emt 0:03:21]} e6 {[%emt 0:01:20]} 2. g3 {[%emt 0:00:14]} d5 {[%emt 0:00:08]} 3. Bg2 {[%emt 0:00:06]} Nf6 {[%emt 0:00:05][%cal Bg8f6,Bf6d5,Bd5b4][%mdl 32]} 4. Nf3 {[%emt 0:00:04]} Be7 {[%emt 0:00:05]} 5. O-O {[%emt 0:00:06]} O-O {[%emt 0:00:04]} 6. b3 {[%emt 0:00:04]} c5 {[%emt 0:00:08]} 7. cxd5 {[%emt 0:00:10]} Nxd5 {[%emt 0:01:19]} 8. Bb2 {[%emt 0:00:27]} b6 {[%emt 0:02:25]} 9. d4 {[%emt 0:00:15]} cxd4 {[%emt 0:00:33]} 10. Nxd4 {[%emt 0:05:45]} Bb7 {[%emt 0:01:33]} 11. e4 {[%emt 0:02:58] White is slightly better.} Nb4 {[%emt 0:17:53] [#]} 12. a3 {[%emt 0:15:12]} (12. Qg4 $1 $16 g6 13. Rd1) 12... N4c6 $11 {[%emt 0:03:17] [#]} 13. e5 $1 {[%emt 0:00:36]} Qc8 {[%emt 0:04:26]} (13... a6 14. Nd2) 14. Nf3 {[%emt 0:10:20]} (14. Nb5 $11) 14... Nd7 {[%emt 0:05:27]} 15. Nbd2 {[%emt 0:01:01]} (15. b4 $11) 15... Rd8 $15 {[%emt 0:07:23]} 16. Qe2 {[%emt 0:11:50]} Ba6 {[%emt 0:04:37]} 17. Nc4 {[%emt 0:00:34]} (17. Qe3 $17) 17... Na5 $19 {[%emt 0:00:44]} 18. Nd4 {[%emt 0:02:57]} ({Don't play} 18. Nfd2 Nxb3 19. Bxa8 Nxa1 $19 (19... Nxd2 $2 20. Qxd2 Bxc4 21. Bg2 $19)) 18... Nxc4 {[%emt 0:18:12]} 19. Nc6 {[%emt 0:13:03]} Nxb2 {[%emt 0:03:54]} 20. Qxb2 {[%emt 0:00:36]} Re8 {[%emt 0:06:39]} 21. Rfc1 {[%emt 0:00:15]} Bc5 {[%emt 0:02:24]} (21... Bf8 $19 {...Nc5 is the strong threat.} 22. b4 Bb5) 22. b4 $15 {[%emt 0:00:42]} Bb7 {[%emt 0:00:32]} 23. bxc5 {[%emt 0:00:15]} Nxc5 {[%emt 0:00:20]} (23... Bxc6 24. cxb6 Bxg2 25. Rxc8 Rexc8 26. Kxg2 Nxb6 27. a4 $14) 24. Nxa7 {[%emt 0:06:11]} Rxa7 {[%emt 0:02:58]} 25. Qxb6 {[%emt 0:00:01]} Qa8 {[%emt 0:01:27][%csl LRa3,LRg2]} 26. Bxb7 {[%emt 0:00:02] The position is equal.} Nxb7 {[%emt 0:00:07]} 27. Rc7 {[%emt 0:00:05]} Rxa3 {[%emt 0:06:57]} 28. Rxa3 {[%emt 0:00:18]} Qxa3 {[%emt 0:00:01]} 29. Qxb7 {[%emt 0:00:23]} Qa1+ {[%emt 0:00:27]} 30. Kg2 {[%emt 0:00:09]} Rf8 {[%emt 0:01:39]} 31. Rc5 {[%emt 0:02:24]} Qd4 {[%emt 0:00:22]} 32. Ra5 {[%emt 0:00:55] Whites escaped into a draw.   Weighted Error Value: White=0.19 (very precise) /Black=0.17 (very precise) .  Mistake:       	White=4     	Black=1      Inaccurate:     	White=1     	Black=3      OK:         	White=8     	Black=6      Best:        	White=4     	Black=4} 1/2-1/2

[Event "RUDAR XXII-IM 2024"]
[Site "Pozarevac"]
[Date "2024.02.12"]
[Round "5.1"]
[White "Mesic, Ismet"]
[Black "Ilincic, Zlatko"]
[Result "1-0"]
[ECO "E46"]
[WhiteElo "2232"]
[BlackElo "2291"]
[Annotator "RC"]
[PlyCount "115"]
[EventDate "2024.02.12"]
[EventType "tourn"]
[EventCountry "SRB"]
[SourceTitle "playchess.com"]
[Source "ChessBase"]
[SourceQuality "1"]
[TimeControl "5400+30"]

1. d4 {[%emt 0:00:03]} Nf6 {[%emt 0:00:59]} 2. c4 {[%emt 0:00:06]} e6 {[%emt 0:00:55]} 3. Nc3 {[%emt 0:00:08]} Bb4 {[%emt 0:00:11]} 4. e3 {[%emt 0:00:05]} O-O {[%emt 0:00:18]} 5. Bd2 {[%emt 0:00:04]} a5 {[%emt 0:01:21]} 6. Nf3 {[%emt 0:00:24]} b6 {[%emt 0:00:24]} 7. Bd3 {[%emt 0:00:11]} Ba6 {[%emt 0:01:03]} 8. O-O {[%emt 0:04:36]} d5 {[%emt 0:00:33]} 9. b3 {[%emt 0:01:37]} c5 {[%emt 0:03:57]} 10. a3 {[%emt 0:02:40]} Bxc3 {[%emt 0:00:26]} 11. Bxc3 {[%emt 0:00:05]} cxd4 {[%emt 0:04:16]} 12. Bxd4 {[%emt 0:04:13]} dxc4 {[%emt 0:02:11]} 13. bxc4 {[%emt 0:01:32]} Nc6 {[%emt 0:01:05]} 14. Bc3 {[%emt 0:02:01]} Nd7 {[%emt 0:01:20]} 15. Qc2 {[%emt 0:06:30]} h6 {[%emt 0:04:15]} 16. Rfd1 {[%emt 0:04:15]} Qe7 {[%emt 0:05:37]} 17. Bh7+ {[%emt 0:10:45]} Kh8 {[%emt 0:00:09]} 18. Be4 {[%emt 0:00:06]} Rac8 {[%emt 0:00:37]} 19. Qb2 {[%emt 0:06:23]} Rg8 {[%emt 0:02:54]} 20. Rac1 {[%emt 0:05:49]} Rc7 {[%emt 0:17:10]} 21. Rd2 {[%emt 0:11:17]} Ncb8 {[%emt 0:14:03]} 22. Bd3 {[%emt 0:18:26]} Nc5 {[%emt 0:04:46]} 23. Bb1 {[%emt 0:01:41]} Nbd7 {[%emt 0:04:28]} 24. Ne5 {[%emt 0:00:53]} Nxe5 {[%emt 0:02:52]} 25. Bxe5 {[%emt 0:00:03]} Rc6 {[%emt 0:00:11]} 26. Rcd1 {[%emt 0:03:14]} f5 {[%emt 0:00:24]} 27. Rd4 {[%emt 0:03:00]} Na4 {[%emt 0:04:41]} 28. Qb3 {[%emt 0:01:48]} Nc5 {[%emt 0:00:12]} 29. Qc2 {[%emt 0:02:28]} Kh7 {[%emt 0:04:10]} 30. Qe2 {[%emt 0:02:57]} Bc8 {[%emt 0:01:14]} 31. Qf3 {[%emt 0:00:32]} Bb7 {[%emt 0:00:10]} 32. Qg3 {[%emt 0:01:58]} Bc8 {[%emt 0:00:09]} 33. h3 {[%emt 0:02:38]} Nd7 {[%emt 0:01:58]} 34. Bd6 {[%emt 0:01:15]} Qe8 {[%emt 0:00:38]} 35. Qf3 {[%emt 0:01:00]} Nc5 {[%emt 0:00:45]} 36. Be5 {[%emt 0:00:28]} Bb7 {[%emt 0:00:13]} 37. Qg3 {[%emt 0:00:18]} Bc8 {[%emt 0:00:16]} 38. Rg4 {[%emt 0:01:09]} g6 {[%emt 0:06:34]} 39. Rh4 {[%emt 0:01:19]} g5 {[%emt 0:00:14]} 40. Rhd4 {[%emt 0:00:07]} Nd7 {[%emt 0:00:06]} 41. Bd6 {[%emt 0:00:32]} Qh5 {[%emt 0:00:59]} 42. Be7 {[%emt 0:01:01]} Rg7 {[%emt 0:00:25]} 43. Bd6 {[%emt 0:00:27]} Rxc4 {[%emt 0:00:19]} 44. R4d2 {[%emt 0:00:31]} Rc6 {[%emt 0:01:51]} 45. e4 {[%emt 0:01:08]} Nf6 {[%emt 0:05:24]} 46. exf5 {[%emt 0:00:11]} exf5 {[%emt 0:00:16]} 47. Qe5 {[%emt 0:00:30]} Qg6 {[%emt 0:03:24]} 48. Qb5 {[%emt 0:00:50]} Rc3 {[%emt 0:01:58]} 49. Qxb6 {[%emt 0:00:46]} Ne4 {[%emt 0:00:51]} 50. Bxe4 {[%emt 0:00:21]} fxe4 {[%emt 0:00:05]} 51. Qxa5 {[%emt 0:00:07]} Rd3 {[%emt 0:00:32]} 52. Rxd3 {[%emt 0:00:22]} exd3 {[%emt 0:00:05]} 53. Be5 {[%emt 0:00:54]} Rd7 {[%emt 0:00:28]} 54. Qc5 {[%emt 0:00:10]} Bb7 {[%emt 0:00:43]} 55. Qf8 {[%emt 0:00:28]} Qe4 {[%emt 0:00:27]} 56. Qh8+ {[%emt 0:00:18]} Kg6 {[%emt 0:00:05]} 57. Qe8+ {[%emt 0:01:07]} Rf7 {[%emt 0:00:30]} 58. Qe6+ {[%emt 0:00:12]} 1-0

[Event "RUDAR XXII-IM 2024"]
[Site "Pozarevac"]
[Date "2024.02.12"]
[Round "5.2"]
[White "Potluri Saye Srreezza"]
[Black "Sri Sai Baswanth P"]
[Result "0-1"]
[ECO "B32"]
[WhiteElo "1983"]
[BlackElo "2096"]
[Annotator "NA RC"]
[PlyCount "68"]
[EventDate "2024.02.12"]
[EventType "tourn"]
[EventCountry "SRB"]
[SourceTitle "playchess.com"]
[Source "ChessBase"]
[SourceQuality "1"]
[TimeControl "5400+30"]

1. e4 {[%emt 0:10:14]} c5 {[%emt 0:00:15]} 2. Nf3 {[%emt 0:00:07]} Nc6 {[%emt 0:00:13]} 3. d4 {[%emt 0:00:06]} cxd4 {[%emt 0:00:05]} 4. Nxd4 {[%emt 0:00:04]} e5 {[%emt 0:00:33]} 5. Nb5 {[%emt 0:00:14]} d6 {[%emt 0:00:11]} 6. c4 {[%emt 0:00:45]} g6 {[%emt 0:00:18]} 7. N1c3 {[%emt 0:00:25]} a6 {[%emt 0:00:07]} 8. Na3 {[%emt 0:00:04]} Bg7 {[%emt 0:00:11]} 9. Nc2 {[%emt 0:00:18]} Be6 {[%emt 0:00:19]} 10. Be2 {[%emt 0:02:26]} Nf6 {[%emt 0:00:19]} 11. O-O {[%emt 0:00:32]} Rc8 {[%emt 0:00:15]} 12. b3 {[%emt 0:23:28]} O-O {[%emt 0:05:20]} 13. Be3 {[%emt 0:07:45]} b5 {[%emt 0:02:42]} 14. cxb5 {[%emt 0:03:38]} axb5 {[%emt 0:00:12]} 15. Nxb5 {[%emt 0:04:35]} Nxe4 {[%emt 0:05:58]} 16. f3 {[%emt 0:00:23]} Nf6 {[%emt 0:12:05]} 17. Nxd6 {[%emt 0:04:26]} Rb8 {[%emt 0:00:18]} 18. Bc4 {[%emt 0:06:11]} Nd4 {[%emt 0:04:46]} 19. Bxe6 {[%emt 0:09:49]} Qxd6 {[%emt 0:00:08]} 20. Bc4 {[%emt 0:00:47]} Nd5 {[%emt 0:00:10]} 21. Bxd5 {[%emt 0:03:06]} Qxd5 {[%emt 0:00:02]} 22. Rf2 {[%emt 0:06:32]} Rfd8 {[%emt 0:04:00]} 23. Rd2 {[%emt 0:00:35]} Qa5 {[%emt 0:00:01]} 24. Bxd4 {[%emt 0:00:56]} exd4 {[%emt 0:00:13]} 25. Rd3 {[%emt 0:00:16]} Rbc8 {[%emt 0:00:31]} 26. a4 {[%emt 0:02:05]} Rc3 {[%emt 0:04:10]} 27. Na3 {[%emt 0:05:35]} Re8 {[%emt 0:02:41]} 28. Nc4 {[%emt 0:00:46]} Qf5 {[%emt 0:01:55]} 29. Rd2 {[%emt 0:03:04]} d3 {[%emt 0:00:15]} 30. Rb1 {[%emt 0:05:26]} Re2 {[%emt 0:02:16]} 31. Rxe2 {[%emt 0:00:48]} dxe2 {[%emt 0:00:07]} 32. Qe1 {[%emt 0:00:32]} Bd4+ {[%emt 0:00:40]} 33. Kh1 {[%emt 0:00:02]} Qxb1 {[%emt 0:01:54]} 34. Qxb1 {[%emt 0:00:05]} Rd3 {[%emt 0:00:13]} 0-1

[Event "RUDAR XXII-IM 2024"]
[Site "Pozarevac"]
[Date "2024.02.12"]
[Round "5.3"]
[White "Ninov, Nikolai"]
[Black "Karamsetty, Jeevan"]
[Result "1-0"]
[ECO "B07"]
[WhiteElo "2413"]
[BlackElo "2211"]
[Annotator "TA"]
[PlyCount "81"]
[EventDate "2024.02.12"]
[EventType "tourn"]
[EventCountry "SRB"]
[SourceTitle "playchess.com"]
[Source "ChessBase"]
[SourceQuality "1"]
[TimeControl "5400+30"]

{[%evp 19,81,14,27,37,38,17,32,26,63,17,44,45,45,43,87,85,89,103,92,110,136,149,131,122,219,217,212,218,350,164,209,190,331,378,378,370,370,379,379,379,478,454,424,308,388,420,488,480,461,388,694,665,685,680,666,647,833,810,29983,29984,29984,29985,29987,29985]} 1. e4 {[%emt 0:00:10]} g6 {[%emt 0:00:09]} 2. d4 {[%emt 0:00:31]} d6 {[%emt 0:00:07]} 3. g3 {[%emt 0:02:22]} Bg7 {[%emt 0:01:14]} 4. Bg2 {[%emt 0:00:35]} Nf6 {[%emt 0:09:56]} 5. Ne2 {[%emt 0:00:37][%cal Bg1e2,Be2d4,Bd4b3][%mdl 32]} O-O {[%emt 0:00:38]} 6. Nbc3 {[%emt 0:03:20]} Nbd7 {[%emt 0:01:06]} 7. O-O {[%emt 0:01:33]} e5 {[%emt 0:02:40]} 8. h3 {[%emt 1:25:22]} exd4 {[%emt 1:18:40]} 9. Nxd4 {[%emt 0:00:30]} Re8 {[%emt 0:00:30]} 10. Re1 {[%emt 0:00:30]} c6 {[%emt 0:00:30]} 11. a4 {[%emt 0:00:30]} a5 {[%emt 0:00:30]} 12. Nb3 {[%emt 0:00:00]} Qc7 {[%emt 0:00:00]} 13. Be3 {[%emt 0:00:00] White is slightly better.} b6 {[%emt 0:00:00]} 14. f4 {[%emt 0:00:00]} (14. Bf4 $14 Ne5 15. Nd4) 14... h5 {[%emt 0:00:00]} 15. Qd2 {[%emt 0:00:00]} Bb7 {[%emt 0:00:00][%cal Od6d5]} 16. Rad1 {[%emt 0:00:00]} Nc5 {[%emt 0:00:00]} 17. Nxc5 {[%emt 0:00:00] White now steadily converts the win.} dxc5 18. Qd6 {[%emt 0:03:30]} Qc8 {[%emt 0:00:00]} 19. e5 {[%emt 0:00:30]} Bf8 {[%emt 0:04:00]} 20. Qd2 {[%emt 0:00:30] White is much more active.} Nd5 {[%emt 0:00:30]} 21. Ne4 {[%emt 0:00:30] Strongly threatening c4.} Rd8 {[%emt 0:00:30]} (21... Ba6 $16 22. g4 hxg4) 22. c4 $18 {[%emt 0:00:30]} Nxe3 {[%emt 0:00:30]} 23. Qxe3 {[%emt 0:00:00]} Qe6 (23... Rd4 {was worth a try.} 24. Rxd4 cxd4 25. Qxd4 Qd8) 24. Qc3 {[%emt 0:01:00]} (24. Nf6+ $142 Kg7 25. Rf1) 24... Ba6 {[%emt 0:01:00] [#]} 25. Nd6 $1 {[%emt 0:00:30][%mdl 512]} Bxd6 {[%emt 0:00:00]} (25... Rab8 $142 26. b3 (26. Bxc6 Bxc4 27. Qxc4 Rxd6 $16) 26... Bc8) (25... Bg7 26. Qe3) 26. exd6 {[%emt 0:00:00]} Qxc4 27. Bxc6 {[%emt 0:01:00]} Qxc3 {[%emt 0:00:00]} 28. bxc3 {[%emt 0:00:00]} Rab8 {[%emt 0:00:00]} 29. d7 {[%emt 0:00:00] [#] Re8+ would now be deadly.} Bc4 {[%emt 0:00:00]} 30. Re8+ {[%emt 0:00:00]} Kg7 {[%emt 0:00:00]} 31. Rd6 {[%emt 0:00:00]} Be6 {[%emt 0:00:00]} 32. h4 {[%emt 0:00:00]} Bf5 {[%emt 0:00:00]} 33. Bb5 {[%emt 0:00:00]} Be6 {[%emt 0:00:00]} 34. Kf2 {[%emt 0:00:00]} Kf6 $2 {[%emt 0:01:39]} (34... Bh3 35. Rxb6 Rxb6 36. Rxd8 Rd6) 35. Ke3 {[%emt 0:00:00]} Kf5 {[%emt 0:00:27]} 36. Kf3 {[%emt 0:00:00]} Kf6 {[%emt 0:02:10]} 37. Ke4 {[%emt 0:00:00]} Kg7 {[%emt 0:00:33]} 38. Ke5 {[%emt 0:00:00] Threatening mate with Rdxe6.} Ra8 {[%emt 0:00:16]} 39. Rdxe6 {[%emt 0:00:00] White mates.} fxe6 {[%emt 0:01:00]} 40. Kxe6 {[%emt 0:00:00]} Rdb8 {[%emt 0:01:07]} 41. Ke7 {[%emt 0:00:00] Weighted Error Value: White=0.16 (very precise) /Black=0.73.  Mistake:       	White=2     	Black=4      Inaccurate:     	---       	Black=3      OK:         	White=13    	Black=10     Best:        	White=1     	---} 1-0